lending/lending_fUSD_20260119
["ID","MTS","AMOUNT","RATE_DAILY","PERIOD"]
[402712176,1768822273450,1600.0,0.00026346,120]
[402712179,1768822346444,211.13,0.00015,3]
[402712181,1768822377724,2193.83,0.00015469,2]
[402712186,1768822510613,-884.42008,0.000155,2]
[402712204,1768822976789,1000.0,0.00015,2]
[402712205,1768822991368,1000.0,0.00015,2]
[402712206,1768823004822,1000.0,0.00015,2]
[402712207,1768823020184,1000.0,0.00015,2]
[402712208,1768823036146,1000.0,0.00017,30]
[402712209,1768823048738,1000.0,0.00015,2]
[402712212,1768823066019,1000.0,0.00015,5]
[402712213,1768823076132,1000.0,0.00015,5]
[402712234,1768823313614,-251.99656871,0.00015558,2]
[402712235,1768823319371,-190.62554114,0.00015558,2]
[402712236,1768823320964,-190.51067263,0.00015558,2]
[402712237,1768823322215,-400.20032331,0.00015558,2]
[402712238,1768823325269,-257.15802416,0.00015558,2]
[402712239,1768823326844,-317.24211769,0.00015558,2]
[402712240,1768823328625,-360.58333979,0.00015558,2]
[402712241,1768823330123,-200.0,0.00015558,2]
[402712242,1768823333282,-309.45729945,0.00015558,2]
[402712243,1768823335266,-334.41271284,0.00015558,2]
[402712244,1768823339472,-183.665,0.00015558,2]
[402712245,1768823341594,-302.43050987,0.00015558,2]
[402712246,1768823344217,-215.70872266,0.00015558,2]
[402712247,1768823346242,-280.08459468,0.00015558,2]
[402712248,1768823349222,-309.37445886,0.00015558,2]
[402712249,1768823351789,-269.85609689,0.00015558,2]
[402712250,1768823354278,-181.96285593,0.00015558,2]
[402712251,1768823356474,-200.57604426,0.00015558,2]
[402712252,1768823358769,-177.13478141,0.00015558,2]
[402712253,1768823361788,-154.04854912,0.00015558,2]
[402712254,1768823364740,-236.08913909,0.00015558,2]
[402712255,1768823367961,-229.56785902,0.00015558,2]
[402712256,1768823369495,-210.61710261,0.00015558,2]
[402712257,1768823370982,-325.95411853,0.00015558,2]
[402712258,1768823372538,-249.68610537,0.00015558,2]
[402712259,1768823375742,-205.80315756,0.00015558,2]
[402712261,1768823417990,-280.0,0.00015558,2]
[402712262,1768823418018,-356.78071427,0.00015558,2]
[402712263,1768823420656,-229.89801628,0.00015558,2]
[402712281,1768823432137,-884.42008,0.00015558,2]
[402712419,1768823437905,-1800.0,0.00015558,2]
[402712420,1768823438078,-780.09889387,0.00015558,2]
[402712421,1768823438090,-218.90110613,0.00015558,2]
[402712462,1768823440116,-1.7e-07,0.00015558,2]
[402712463,1768823440175,-931.365,0.00015558,2]
[402712464,1768823440339,-2012.6967937,0.00015558,2]
[402712465,1768823440349,-1200.0,0.00015656,2]
[402712466,1768823440360,-164.62,0.00015657,2]
[402712467,1768823440371,-300.0,0.00015657,2]
[402712468,1768823440384,-1112.7383542,0.00015657,2]
[402712469,1768823440396,-25112.95737031,0.00015737,2]
[402712470,1768823440406,-500.0,0.00015973,2]
[402712472,1768823440416,-508.88161268,0.00015973,2]
[402712474,1768823440428,-500.0,0.00015973,2]
[402712475,1768823440438,-152.0,0.00016299,2]
[402712476,1768823440449,-152.0,0.00016299,2]
[402712477,1768823440460,-152.0,0.00016299,2]
[402712478,1768823440471,-152.0,0.00016299,2]
[402712479,1768823440480,-151.0,0.000164,2]
[402712480,1768823440490,-950.22,0.00016428,2]
[402712481,1768823440501,-503.0,0.00016466,2]
[402712482,1768823440513,-223.04,0.00016472,2]
[402712483,1768823440524,-200.0,0.00016477,2]
[402712484,1768823440535,-500.0,0.00016521,2]
[402712485,1768823440547,-489.22403192,0.00016521,2]
[402712486,1768823440558,-150.0,0.00016523,2]
[402712487,1768823440569,-1500.0,0.00016539,2]
[402712488,1768823440579,-151.0,0.00016645,2]
[402712489,1768823440590,-151.0,0.00016645,2]
[402712490,1768823440600,-230.0,0.00016673,2]
[402712491,1768823440610,-231.38,0.00016724,2]
[402712492,1768823440620,-578.85,0.00016732,2]
[402712493,1768823440631,-357.0,0.00016738,2]
[402712494,1768823440641,-500.0,0.00016757,2]
[402712495,1768823440651,-2194.32,0.00016757,2]
[402712496,1768823440661,-959.0,0.00016775,2]
[402712497,1768823440671,-578.85,0.00016776,2]
[402712498,1768823440681,-578.85,0.00016821,2]
[402712499,1768823440691,-178.4,0.00016827,2]
[402712500,1768823440701,-578.85,0.00016865,2]
[402712501,1768823440711,-578.85,0.00016909,2]
[402712502,1768823440721,-578.85,0.00016953,2]
[402712503,1768823440731,-166.67,0.00016967,2]
[402712504,1768823440741,-3556.97,0.0001697,2]
[402712505,1768823440751,-578.85,0.00016997,2]
[402712506,1768823440762,-250.0,0.00017,2]
[402712507,1768823440772,-578.85,0.00017041,2]
[402712508,1768823440782,-950.22,0.00017045,2]
[402712509,1768823440792,-150.0,0.00017067,2]
[402712510,1768823440803,-250.0,0.00017084,2]
[402712511,1768823440813,-578.85,0.00017085,2]
[402712512,1768823440823,-239.99,0.00017099,2]
[402712513,1768823440833,-1000.0,0.00017099,2]
[402712514,1768823441302,-1000.0,0.00017099,2]
[402712515,1768823441338,-574.12855637,0.00017099,2]
[402712516,1768823441360,-1000.0,0.00017099,2]
[402712517,1768823441369,-1000.0,0.00017099,2]
[402712518,1768823441381,-174.61919142,0.00017099,2]
[402712519,1768823441393,-1000.0,0.00017099,2]
[402712520,1768823441402,-1000.0,0.00017099,2]
[402712521,1768823441412,-620.0,0.00017099,2]
[402712522,1768823441423,-954.09835249,0.00017099,2]
[402712523,1768823441432,-4444.0,0.00017099,2]
[402712524,1768823441442,-1999.0,0.00017099,2]
[402712525,1768823441452,-322.6107,0.00017099,2]
[402712526,1768823441462,-578.85,0.00017129,2]
[402712527,1768823441471,-578.85,0.00017173,2]
[402712528,1768823441479,-962.0,0.00017183,2]
[402712529,1768823441488,-467.58,0.000172,2]
[402712530,1768823441497,-1680.0,0.0001721,2]
[402712531,1768823441506,-578.85,0.00017217,2]
[402712532,1768823441515,-1000.0,0.0001726,2]
[402712533,1768823441524,-578.85,0.00017261,2]
[402712534,1768823441533,-223.04,0.00017296,2]
[402712535,1768823441541,-578.85,0.00017305,2]
[402712536,1768823441549,-1125.0,0.00017316,2]
[402712537,1768823441558,-168.0,0.00017327,2]
[402712538,1768823441568,-578.85,0.00017349,2]
[402712539,1768823441577,-168.0,0.00017369,2]
[402712540,1768823441586,-239.99,0.00017373,2]
[402712541,1768823441594,-4456.0,0.00017389,2]
[402712542,1768823441603,-578.85,0.00017393,2]
[402712543,1768823441612,-578.85,0.00017437,2]
[402712544,1768823441621,-155.93391326,0.00017447,2]
[402712545,1768823441629,-316.685,0.00017464,2]
[402712546,1768823441638,-578.85,0.00017481,2]
[402712547,1768823441647,-500.0,0.00017499,2]
[402712548,1768823441655,-500.0,0.00017499,2]
[402712549,1768823441664,-578.85,0.00017525,2]
[402712550,1768823441674,-1000.0,0.00017534,2]
[402712551,1768823441683,-1600.0,0.00017564,2]
[402712552,1768823441692,-578.85,0.00017569,2]
[402712553,1768823441702,-3652.37,0.0001758,2]
[402712554,1768823441711,-489.0,0.00017616,2]
[402712555,1768823441720,-184.3084844,0.0001764,2]
[402712556,1768823441730,-239.99,0.00017647,2]
[402712557,1768823441739,-595.37131296,0.00017647,2]
[402712558,1768823441748,-950.22,0.00017661,2]
[402712559,1768823441757,-489.0,0.00017671,2]
[402712560,1768823441767,-1802.96,0.00017686,2]
[402712561,1768823441776,-500.0,0.00017725,2]
[402712562,1768823441785,-489.0,0.00017726,2]
[402712563,1768823441794,-1000.0,0.00017742,2]
[402712564,1768823441803,-1000.0,0.00017747,2]
[402712565,1768823441812,-500.0,0.0001778,2]
[402712566,1768823441822,-489.0,0.0001778,2]
[402712567,1768823441831,-2000.0,0.000178,2]
[402712568,1768823441839,-1000.0,0.00017808,2]
[402712569,1768823441848,-451.38676,0.0001782,2]
[402712570,1768823441858,-451.38677,0.0001782,2]
[402712571,1768823441867,-500.0,0.00017835,2]
[402712572,1768823441876,-489.0,0.00017835,2]
[402712573,1768823441885,-2085.968,0.00017843,2]
[402712574,1768823441894,-1000.0,0.00017848,2]
[402712575,1768823441904,-500.0,0.00017863,2]
[402712576,1768823441913,-158.468,0.00017871,2]
[402712577,1768823441923,-274.0,0.00017889,2]
[402712578,1768823441933,-489.0,0.0001789,2]
[402712579,1768823441942,-359.65169592,0.00017899,2]
[402712580,1768823441952,-180.47263475,0.00017899,2]
[402712581,1768823441963,-359.65169585,0.00017899,2]
[402712582,1768823441973,-359.65169585,0.00017899,2]
[402712583,1768823441982,-359.65169585,0.00017899,2]
[402712584,1768823441992,-359.65169585,0.00017899,2]
[402712585,1768823442002,-359.65169585,0.000179,2]
[402712586,1768823442013,-359.65169585,0.000179,2]
[402712587,1768823442024,-359.65169585,0.000179,2]
[402712588,1768823442034,-359.65169585,0.000179,2]
[402712589,1768823442043,-4168.5871,0.000179,2]
[402712590,1768823442053,-11439.77383241,0.000179,3]
[402712591,1768823442062,-359.65169585,0.000179,2]
[402712592,1768823442071,-25000.0,0.000179,3]
[402712593,1768823442080,-180.47263475,0.000179,2]
[402712594,1768823442089,-1000.0,0.00017908,2]
[402712595,1768823442098,-239.99,0.00017921,2]
[402712596,1768823442107,-489.0,0.00017945,2]
[402712597,1768823442116,-500.0,0.00017973,2]
[402712598,1768823442125,-500.0,0.00017982,2]
[402712599,1768823442134,-1778.71,0.00017988,2]
[402712600,1768823442144,-216.92945839,0.0001799,2]
[402712601,1768823442153,-216.92945839,0.0001799,2]
[402712602,1768823442163,-216.92945839,0.0001799,2]
[402712603,1768823442172,-1778.71,0.0001799,2]
[402712604,1768823442181,-1778.71,0.0001799,2]
[402712605,1768823442190,-1778.71,0.0001799,2]
[402712606,1768823442199,-1778.71,0.0001799,2]
[402712607,1768823442209,-165.29,0.0001799,2]
[402712608,1768823442218,-151.0,0.00017995,2]
[402712609,1768823442228,-500.0,0.00017997,2]
[402712610,1768823442238,-500.0,0.00017997,2]
[402712611,1768823442248,-500.0,0.00017997,2]
[402712612,1768823442257,-500.0,0.00017997,2]
[402712613,1768823442267,-519.05995183,0.00017997,2]
[402712614,1768823442276,-505.04837399,0.00017997,2]
[402712615,1768823442285,-580.84626551,0.00017997,2]
[402712616,1768823442294,-500.0,0.00017997,2]
[402712617,1768823442304,-500.0,0.00017997,2]
[402712618,1768823442313,-500.0,0.00017997,2]
[402712619,1768823442322,-500.0,0.00017997,2]
[402712620,1768823442331,-642.58389368,0.00017997,2]
[402712621,1768823442340,-510.51181022,0.00017997,2]
[402712622,1768823442350,-151.0,0.00017997,2]
[402712623,1768823442360,-14175.7990865,0.00017998,2]
[402712624,1768823442370,-142532.432711,0.00017998,2]
[402712625,1768823442380,-1964.0422219,0.00017998,2]
[402712626,1768823442393,-504.28373524,0.00017999,2]
[402712627,1768823442403,-500.0,0.00017999,2]
[402712628,1768823442412,-500.0,0.00017999,2]
[402712629,1768823442421,-500.0,0.00017999,2]
[402712630,1768823442432,-155.0,0.00017999,2]
[402712631,1768823442441,-500.0,0.00017999,2]
[402712632,1768823442451,-500.0,0.00017999,2]
[402712633,1768823442460,-544.59749833,0.00017999,2]
[402712634,1768823442470,-500.0,0.00017999,2]
[402712635,1768823442480,-500.0,0.00017999,2]
[402712636,1768823442489,-625.82432737,0.00017999,2]
[402712637,1768823442499,-300.0,0.00017999,2]
[402712638,1768823442510,-172.06076958,0.00017999,2]
[402712639,1768823442520,-500.0,0.00017999,2]
[402712640,1768823442531,-277.89121675,0.00017999,2]
[402712641,1768823442540,-410.21176595,0.00017999,2]
[402712642,1768823442549,-510.74926717,0.00017999,2]
[402712643,1768823442559,-489.0,0.00018,2]
[402712644,1768823442568,-3133.0,0.00018,2]
[402712645,1768823442578,-150.0,0.00018,2]
[402712646,1768823442588,-150.0,0.00018,2]
[402712647,1768823442598,-1383489.92557506,0.00018,2]
[402712684,1768823443504,-151.0,0.0001665,2]
[402712685,1768823443514,-151.0,0.0001665,2]
[402712686,1768823443523,-17329.5407825,0.00018,2]
[402712687,1768823443537,-300.76992873,0.00018,2]
[402712688,1768823443549,-2785.94576732,0.00018,2]
[402712689,1768823443561,-426.1423036,0.00018,2]
[402712726,1768823446051,-900.46,0.00016378,2]
[402712784,1768824066076,3231.16984,0.00015458,2]
[402712785,1768824066101,6773.83156,0.00015458,2]
[402712787,1768824148292,236.8728,0.00015458,2]
[402712788,1768824166683,1000.0,0.000155,2]
[402712789,1768824178318,1000.0,0.000152,2]
[402712790,1768824196461,989.30564,0.00015,2]
[402712791,1768824196482,10.69436,0.00015,2]
[402712792,1768824204366,1000.0,0.000147,2]
[402712793,1768824367884,4107.580673,7.945e-05,2]
[402712794,1768824388320,3196.3683,0.000147,2]
[402712795,1768824493222,1685.366667,0.00015458,2]
[402712796,1768824493253,10000.01,0.00015458,2]
[402712797,1768824493280,10000.01,0.00015458,2]
[402712798,1768824493305,10000.01,0.00015458,2]
[402712799,1768824493329,10000.01,0.00015458,2]
[402712800,1768824493354,10000.01,0.00015458,2]
[402712801,1768824493378,10000.01,0.00015458,2]
[402712802,1768824493403,10000.01,0.00015458,2]
[402712803,1768824493428,10000.01,0.00015458,2]
[402712804,1768824493452,10000.01,0.00015458,2]
[402712805,1768824494067,-584.50636067,0.00015458,2]
[402712806,1768824495671,-266.64613231,0.00015458,2]
[402712807,1768824499943,-229.4334961,0.00015458,2]
[402712808,1768824501366,-176.0904459,0.00015458,2]
[402712809,1768824503044,-421.86843115,0.00015458,2]
[402712810,1768824505087,-208.38867204,0.00015458,2]
[402712811,1768824506769,-227.87507243,0.00015458,2]
[402712812,1768824508765,-250.0,0.00015458,2]
[402712813,1768824511317,-294.95573085,0.00015458,2]
[402712814,1768824514988,-244.28029059,0.00015458,2]
[402712815,1768824518802,-501.5645539,0.00015458,2]
[402712816,1768824520398,-178.67630316,0.00015458,2]
[402712817,1768824522366,-747.20991365,0.00015458,2]
[402712818,1768824524555,-250.00000017,0.00015458,2]
[402712819,1768824524622,-4418.56525955,0.00015458,2]
[402712820,1768824526420,-10000.01,0.00015458,2]
[402712821,1768824526880,-10000.01,0.00015458,2]
[402712822,1768824526925,-10000.01,0.00015458,2]
[402712823,1768824526940,-10000.01,0.00015458,2]
[402712824,1768824527009,-10000.01,0.00015458,2]
[402712825,1768824527039,-282.56168724,0.00015458,2]
[402712826,1768824527142,-10000.01,0.00015458,2]
[402712827,1768824527289,-10000.01,0.00015458,2]
[402712828,1768824527395,-10000.01,0.00015458,2]
[402712829,1768824528945,-10000.01,0.00015458,2]
[402712830,1768824529080,-10000.01,0.00015458,2]
[402712831,1768824530259,-187.64021807,0.00015458,2]
[402712832,1768824532440,-300.0,0.00015458,2]
[402712833,1768824534930,-200.0,0.00015458,2]
[402712834,1768824535410,-10000.01,0.00015458,2]
[402712835,1768824535662,-10000.01,0.00015458,2]
[402712836,1768824535843,-10000.01,0.00015458,2]
[402712837,1768824535964,-10000.01,0.00015458,2]
[402712838,1768824536079,-10000.01,0.00015458,2]
[402712839,1768824538053,-330.14659592,0.00015458,2]
[402712840,1768824538180,-10000.01,0.00015458,2]
[402712841,1768824540049,-264.68883042,0.00015458,2]
[402712842,1768824541594,-360.27484085,0.00015458,2]
[402712843,1768824545120,-300.0,0.00015457,2]
[402712844,1768824545150,-370.0,0.00015457,2]
[402712845,1768824545479,-8660.01,0.00015458,2]
[402712846,1768824545498,-10000.01,0.00015458,2]
[402712847,1768824545512,-10000.01,0.00015458,2]
[402712848,1768824545531,-10000.01,0.00015458,2]
[402712849,1768824545546,-10000.01,0.00015458,2]
[402712850,1768824545561,-10000.01,0.00015458,2]
[402712851,1768824545772,-250.0,0.00015458,2]
[402712852,1768824547724,-10000.01,0.00015458,2]
[402712853,1768824548021,-10000.01,0.00015458,2]
[402712854,1768824548159,-10000.01,0.00015458,2]
[402712855,1768824548953,-302.4460822,0.00015458,2]
[402712856,1768824550337,-10000.01,0.00015458,2]
[402712857,1768824550491,-10000.01,0.00015458,2]
[402712858,1768824550572,-279.67050301,0.00015458,2]
[402712859,1768824550633,-10000.01,0.00015458,2]
[402712860,1768824550827,-10000.01,0.00015458,2]
[402712861,1768824550971,-10000.01,0.00015458,2]
[402712862,1768824551110,-10000.01,0.00015458,2]
[402712863,1768824551275,-2094.62408718,0.00015458,2]
[402712864,1768824551302,-5810.76182564,0.00015458,2]
[402712865,1768824570120,3261.4418,0.00015458,2]
[402712866,1768824572861,-161.30683598,0.00015471,2]
[402712867,1768824574971,-389.66526946,0.00015471,2]
[402712868,1768824576600,236.8728,0.00015458,2]
[402712869,1768824576670,-201.90146929,0.00015471,2]
[402712870,1768824577960,-199.46921829,0.00015471,2]
[402712871,1768824579933,-250.0,0.00015471,2]
[402712872,1768824581960,-306.78874054,0.00015471,2]
[402712873,1768824583939,-303.78542022,0.00015471,2]
[402712874,1768824585553,-159.97553597,0.00015471,2]
[402712875,1768824587655,-195.53814828,0.00015471,2]
[402712876,1768824590921,-473.31304378,0.00015471,2]
[402712877,1768824593479,-26.26987719,0.00015471,2]
[402712878,1768824593501,-151.0,0.00015471,2]
[402712879,1768824593522,-26.18032747,0.00015471,2]
[402712880,1768824600930,500.0,0.00015456,2]
[402712883,1768824615847,-124.81967253,0.00015471,2]
[402712884,1768824615873,-46.67253441,0.00015471,2]
[402712885,1768824617398,-209.08362378,0.00015471,2]
[402712886,1768824623529,10000.01,0.00015458,2]
[402712887,1768824623560,10000.01,0.00015458,2]
[402712888,1768824623593,10000.01,0.00015458,2]
[402712889,1768824623624,10000.01,0.00015458,2]
[402712890,1768824623657,10000.01,0.00015458,2]
[402712891,1768824623688,10000.01,0.00015458,2]
[402712892,1768824623721,10000.01,0.00015458,2]
[402712893,1768824623757,10000.01,0.00015458,2]
[402712894,1768824623792,10000.01,0.00015458,2]
[402712895,1768824623827,9500.01,0.00015458,2]
[402712896,1768824623859,10000.01,0.00015458,2]
[402712897,1768824623889,10000.01,0.00015458,2]
[402712898,1768824624191,10000.01,0.00015458,2]
[402712899,1768824624247,10000.01,0.00015458,2]
[402712900,1768824624277,10000.01,0.00015458,2]
[402712901,1768824624308,10000.01,0.00015458,2]
[402712902,1768824624338,10000.01,0.00015458,2]
[402712903,1768824624369,10000.01,0.00015458,2]
[402712904,1768824624399,10000.01,0.00015458,2]
[402712905,1768824624878,-359.14456207,0.00015458,2]
[402712906,1768824626854,-279.78711307,0.00015458,2]
[402712907,1768824628992,-410.802881,0.00015458,2]
[402712908,1768824631666,-246.80571456,0.00015458,2]
[402712916,1768824632009,-547.77308168,0.00015458,2]
[402712917,1768824632063,-731.38855193,0.00015458,2]
[402712918,1768824632115,-635880.60709569,0.00015458,2]
[402712936,1768824632371,-23.24384181,0.00015471,2]
[402712940,1768824632402,-253.00504588,0.00015471,2]
[402712942,1768824632412,-151.0,0.00015549,2]
[402712944,1768824632422,-289.30659085,0.00015549,2]
[402712946,1768824632432,-246.0,0.00015555,2]
[402712948,1768824632441,-300.0,0.00015556,2]
[402712950,1768824632451,-1200.0,0.00015556,2]
[402712952,1768824632460,-300.0,0.00015556,2]
[402712954,1768824632470,-1000.0,0.00015557,2]
[402712956,1768824632480,-392.39605232,0.00015557,2]
[402712958,1768824632489,-500.0,0.00015557,2]
[402712960,1768824632498,-500.0,0.00015557,2]
[402712962,1768824632508,-400.43168209,0.00015557,2]
[402712964,1768824632518,-250.69097941,0.00015557,2]
[402712966,1768824632527,-500.0,0.00015557,2]
[402712968,1768824632537,-500.0,0.00015557,2]
[402712970,1768824632546,-500.0,0.00015557,2]
[402712972,1768824632555,-500.0,0.00015557,2]
[402712974,1768824632565,-500.0,0.00015557,2]
[402712976,1768824632575,-161.95604531,0.00015557,2]
[402712978,1768824632585,-500.0,0.00015557,2]
[402712980,1768824632594,-500.0,0.00015557,2]
[402712982,1768824632603,-500.0,0.00015557,2]
[402712985,1768824632614,-500.0,0.00015557,2]
[402712987,1768824632623,-500.0,0.00015557,2]
[402712989,1768824632632,-350.0,0.00015557,2]
[402712990,1768824632641,-500.0,0.00015557,2]
[402712992,1768824632651,-500.0,0.00015557,2]
[402712994,1768824632660,-500.0,0.00015557,2]
[402712996,1768824632669,-500.0,0.00015557,2]
[402712999,1768824632679,-500.0,0.00015557,2]
[402713000,1768824632689,-500.0,0.00015557,2]
[402713003,1768824632699,-500.0,0.00015557,2]
[402713004,1768824632708,-500.0,0.00015557,2]
[402713006,1768824632717,-500.0,0.00015557,2]
[402713008,1768824632726,-500.0,0.00015557,2]
[402713010,1768824632735,-500.0,0.00015557,2]
[402713012,1768824632745,-500.0,0.00015557,2]
[402713014,1768824632756,-500.0,0.00015557,2]
[402713016,1768824632766,-500.0,0.00015557,2]
[402713018,1768824632775,-500.0,0.00015557,2]
[402713020,1768824632784,-500.0,0.00015557,2]
[402713022,1768824632794,-500.0,0.00015557,2]
[402713024,1768824632804,-500.0,0.00015557,2]
[402713026,1768824632813,-500.0,0.00015557,2]
[402713028,1768824632825,-500.0,0.00015557,2]
[402713030,1768824632835,-500.0,0.00015557,2]
[402713032,1768824632844,-500.0,0.00015557,2]
[402713034,1768824632853,-500.0,0.00015557,2]
[402713036,1768824632862,-500.0,0.00015557,2]
[402713038,1768824632872,-500.0,0.00015557,2]
[402713040,1768824632881,-500.0,0.00015557,2]
[402713042,1768824632890,-500.0,0.00015557,2]
[402713044,1768824632900,-500.0,0.00015557,2]
[402713046,1768824632909,-500.0,0.00015557,2]
[402713048,1768824632918,-500.0,0.00015557,2]
[402713050,1768824632927,-500.0,0.00015557,2]
[402713052,1768824632937,-500.0,0.00015557,2]
[402713054,1768824632946,-500.0,0.00015557,2]
[402713056,1768824632955,-500.0,0.00015557,2]
[402713058,1768824632964,-500.0,0.00015557,2]
[402713060,1768824632974,-449.13070919,0.00015557,2]
[402713062,1768824632983,-500.0,0.00015557,2]
[402713064,1768824632992,-660.48585173,0.00015652,2]
[402713066,1768824633002,-166.66,0.00015794,2]
[402713068,1768824633012,-500.0,0.00015973,2]
[402713070,1768824633022,-500.0,0.00015973,2]
[402713072,1768824633032,-508.88161268,0.00015973,2]
[402713074,1768824633041,-166.66,0.00016126,2]
[402713076,1768824633050,-150.0,0.000162,2]
[402713078,1768824633061,-99.54,0.00016378,2]
[402713080,1768824633070,-26181.45,0.00016378,2]
[402713082,1768824633080,-1522.0,0.00016387,2]
[402713084,1768824633089,-166.66,0.00016459,2]
[402713086,1768824633098,-1264.0,0.00016468,2]
[402713088,1768824633107,-1264.0,0.00016475,2]
[402713090,1768824633117,-151.0,0.00016475,2]
[402713092,1768824633126,-183.78,0.00016508,2]
[402713094,1768824633136,-3240.0,0.0001651,2]
[402713097,1768824633146,-489.22403192,0.00016521,2]
[402713098,1768824633155,-500.0,0.00016521,2]
[402713101,1768824633166,-510.0,0.00016586,2]
[402713103,1768824633175,-785.09,0.00016645,2]
[402713105,1768824633185,-1062.8131221,0.00016691,2]
[402713107,1768824633195,-178.4,0.00016708,2]
[402713109,1768824633204,-320.29,0.00016724,2]
[402713111,1768824633213,-1350.23,0.00016788,2]
[402713113,1768824633222,-166.66,0.00016791,2]
[402713115,1768824633231,-192.0,0.000168,2]
[402713117,1768824633242,-159.63,0.00016851,2]
[402713119,1768824633251,-200.0,0.00016881,2]
[402713121,1768824633261,-490.0,0.00016954,2]
[402713123,1768824633270,-1611.0,0.00016988,2]
[402713125,1768824633279,-5533.0,0.00017,5]
[402713127,1768824633289,-626.0,0.00017011,2]
[402713129,1768824633298,-420.0,0.00017016,2]
[402713131,1768824633308,-276.0,0.00017016,2]
[402713133,1768824633317,-1461.0,0.00017045,2]
[402713135,1768824633328,-1339.53451941,0.00017062,2]
[402713137,1768824633338,-285.65,0.00017099,2]
[402713139,1768824633347,-322.6107,0.00017099,2]
[402713141,1768824633356,-174.61919141,0.00017099,2]
[402713143,1768824633365,-578.20924308,0.00017099,2]
[402713145,1768824633375,-620.0,0.00017099,2]
[402713147,1768824633385,-1000.0,0.00017099,2]
[402713149,1768824633394,-1000.0,0.00017099,2]
[402713151,1768824633404,-1000.0,0.00017099,2]
[402713153,1768824633413,-4444.0,0.00017099,2]
[402713155,1768824633423,-574.12855637,0.00017099,2]
[402713157,1768824633433,-1000.0,0.00017099,2]
[402713159,1768824633443,-1000.0,0.00017099,2]
[402713161,1768824633452,-1000.0,0.00017099,2]
[402713163,1768824633461,-1999.0,0.00017099,2]
[402713165,1768824633470,-954.09835249,0.00017099,2]
[402713167,1768824633480,-1680.0,0.00017102,2]
[402713169,1768824633489,-792.36542617,0.00017104,2]
[402713171,1768824633498,-166.66,0.00017124,2]
[402713173,1768824633508,-465.0,0.00017166,2]
[402713175,1768824633517,-171.87,0.00017178,2]
[402713177,1768824633526,-301.12,0.00017178,2]
[402713179,1768824633535,-398.8,0.00017182,2]
[402713181,1768824633544,-1000.0,0.0001726,2]
[402713183,1768824633553,-285.65,0.00017373,2]
[402713184,1768824633562,-523.53716896,0.00017411,2]
[402713186,1768824633572,-155.93391326,0.0001743,2]
[402713188,1768824633582,-166.66,0.00017456,2]
[402713190,1768824633592,-523.5371689,0.00017465,2]
[402713192,1768824633601,-374.0,0.00017496,2]
[402713194,1768824633609,-2000.0,0.000175,2]
[402713196,1768824633619,-1000.0,0.000175,2]
[402713198,1768824633628,-374.0,0.00017511,2]
[402713200,1768824633638,-523.5371689,0.0001752,2]
[402713202,1768824633647,-1000.0,0.00017534,2]
[402713204,1768824633657,-6237.2063237,0.00017542,2]
[402713206,1768824633667,-523.5371689,0.00017574,2]
[402713208,1768824633676,-500.0,0.00017589,2]
[402713210,1768824633685,-442.0,0.00017596,2]
[402713212,1768824633695,-500.0,0.00017616,2]
[402713214,1768824633704,-500.0,0.00017616,2]